bitfinex/quotes_SOLUSD_20240605
["timestamp","ask_amount","ask_price","bid_price","bid_amount"]
[1717555513426,28.2551,173.15,173.14,0.8184313]
[1717555513935,28.2551,173.15,173.04,386.7144]
[1717555513936,29.6798,173.15,173.04,380.3]
[1717555514130,2.1378,173.08,173.04,2.1382]
[1717555514303,7.21,173.06,173.05,2.1381]
[1717555514830,37.3873,173.16,173.03,120.0]
[1717555515134,7.21,173.09,173.05,130.3196]
[1717555515332,7.21,173.08,173.04,19.2437]
[1717555515502,7.21,173.08,173.03,120.0]
[1717555515830,2.1375,173.1,173.06,2.1379]
[1717555518008,2.1374,173.11,173.07,2.1378]
[1717555519427,2.1374,173.1,173.06,2.1379]
[1717555522337,2.1376,173.09,173.05,2.138]
[1717555522546,2.1377,173.08,173.04,2.1381]
[1717555522910,10.6869,173.11,173.05,2.1381]
[1717555523327,2.1377,173.09,173.05,2.1381]
[1717555524228,2.1377,173.08,173.03,120.0]
[1717555524724,2.1376,173.09,173.05,2.138]
[1717555524925,4.2748,173.11,173.07,2.1378]
[1717555524926,2.1374,173.11,173.07,2.1378]
[1717555525118,2.1373,173.12,173.05,124.2761]
[1717555525318,4.2741,173.14,173.08,2.1376]
[1717555525637,2.1375,173.1,173.06,2.1379]
[1717555525820,6.4121,173.11,173.04,2.1382]
[1717555526017,4.2748,173.11,173.04,2.1381]
[1717555526325,2.1377,173.08,173.04,2.1381]
[1717555527233,2.1376,173.09,173.05,2.1381]
[1717555527628,2.1375,173.1,173.06,2.1379]
[1717555528342,2.1376,173.09,173.05,2.138]
[1717555529539,21.64,173.14,173.0,126.0436]
[1717555529846,2.138,173.06,173.02,2.1384]
[1717555530056,2.1381,173.05,173.01,2.1385]
[1717555530346,2.138,173.06,173.02,2.1384]
[1717555530573,8.5514,173.08,172.97,400.3695313]
[1717555530720,6.0337,173.09,172.97,400.3695313]
[1717555530721,2.1387,173.0,172.97,0.8184313]
[1717555530925,2.1389,172.98,172.97,0.8184313]
[1717555533013,8.5528,173.05,172.97,0.8184313]
[1717555533232,19.17889103,173.07,172.97,0.8184313]
[1717555533428,19.17889103,173.07,173.0,2.1386]
[1717555533629,48.12555425,173.08,172.97,5.0964313]
[1717555533630,8.552,173.06,172.97,0.8184313]
[1717555533838,28.88535425,173.08,172.97,0.8184313]
[1717555533839,2.1389,172.99,172.97,0.8184313]
[1717555534153,2.1387,173.0,172.97,0.8184313]
[1717555534515,4.277,173.02,172.97,0.8184313]
[1717555534516,2.1388,172.99,172.97,0.8184313]
[1717555534716,4.2765,173.04,172.97,0.8184313]
[1717555534920,2.1384,173.02,172.97,2.9574313]
[1717555535123,2.1385,173.02,172.97,2.9574313]
[1717555535426,2.1384,173.02,172.97,2.9574313]
[1717555535625,2.1386,173.01,172.97,2.9574313]
[1717555536345,4.2767,173.03,172.97,0.8184313]
[1717555536526,2.1386,173.01,172.97,2.9574313]
[1717555536730,2.1385,173.02,172.97,2.9574313]
[1717555536944,2.1386,173.01,172.97,2.9574313]
[1717555537465,8.5539,173.02,172.97,0.8184313]
[1717555537672,2.1389,172.98,172.97,0.8184313]
[1717555538054,6.4168,172.98,172.97,0.8184313]
[1717555538570,14.967,173.05,172.98,6.1711]
[1717555538749,2.1385,173.02,172.98,128.31]
[1717555538944,2.1382,173.04,173.0,2.1387]
[1717555539141,37.43675425,173.08,172.98,120.0]
[1717555539344,21.64,173.08,172.97,0.8184313]
[1717555539672,2.1386,173.01,172.97,2.9574313]
[1717555539839,2.1387,173.0,172.97,0.8184313]
[1717555540154,2.1388,172.99,172.97,0.8184313]
[1717555540339,14.9676,173.04,172.97,0.8184313]
[1717555540547,2.1385,173.02,172.98,2.1389]
[1717555540848,2.1383,173.04,172.98,126.1711]
[1717555541061,8.5502,173.1,172.99,4.2777]
[1717555541267,2.138,173.06,173.0,120.0]
[1717555541443,2.1378,173.07,173.03,2.1382]
[1717555541639,2.1382,173.05,173.0,2.1386]
[1717555541840,2.1388,172.99,172.98,380.3]
[1717555542066,2.1388,172.99,172.97,0.8184313]
[1717555542268,2.1387,173.0,172.97,0.8184313]
[1717555542642,2.1386,173.01,172.97,2.9574313]
[1717555542948,4.2759,173.06,172.98,120.0]
[1717555543156,6.4129,173.09,173.02,2.1384]
[1717555543463,8.5501,173.1,173.02,120.0]
[1717555543670,5.52533021,173.12,173.03,6.1711]
[1717555543972,14.9634,173.09,173.01,2.1384]
[1717555544138,21.64,173.1,172.98,6.1711]
[1717555544336,21.64,173.1,172.98,8.31]
[1717555544337,2.1384,173.02,172.98,8.31]
[1717555544578,2.1384,173.03,172.99,2.1388]
[1717555544875,10.6902,173.06,172.98,6.1711]
[1717555544876,2.1385,173.02,172.98,6.1711]
[1717555545039,2.1385,173.02,172.97,2.9574313]
[1717555545236,2.1383,173.03,172.98,2.1389]
[1717555545659,34.4676,173.07,172.99,2.1388]
[1717555545660,2.1382,173.04,172.99,2.1388]
[1717555545865,2.1382,173.04,173.0,6.1711]
[1717555546167,4.2747,173.11,173.0,126.1711]
[1717555546347,2.1378,173.08,173.03,2.1383]
[1717555547047,2.1375,173.1,173.05,2.1381]
[1717555547248,34.41068446,173.16,173.02,2.1384]
[1717555547452,2.138,173.06,173.02,2.1384]
[1717555547849,2.138,173.06,173.03,1.83477382]
[1717555548167,2.1379,173.07,173.03,2.1382]
[1717555548338,2.1377,173.08,173.04,2.1382]
[1717555548743,2.1376,173.09,173.05,2.1381]
[1717555548971,2.1377,173.08,173.04,2.1381]
[1717555549357,2.138,173.06,173.03,6.1711]
[1717555549557,4.2757,173.08,173.01,6.1711]
[1717555549756,4.2749,173.1,173.02,6.1711]
[1717555549961,4.2749,173.1,173.03,2.1382]
[1717555550167,2.1377,173.08,173.03,8.3093]
[1717555550370,2.1378,173.07,173.03,8.3093]
[1717555551263,4.2749,173.1,173.03,6.1711]
[1717555551465,4.2749,173.1,172.99,6.2853]
[1717555551466,21.64,173.1,172.99,6.2853]
[1717555551673,30.08068446,173.15,172.99,6.2853]
[1717555551674,8.552,173.06,172.99,6.2853]
[1717555551864,10.6914,173.04,172.97,387.6438313]
[1717555552178,2.1388,173.0,172.97,7.3438313]
[1717555552353,4.2767,173.03,172.97,7.3438313]
[1717555552772,14.9686,173.03,172.97,0.8184313]
[1717555552978,2.1387,173.0,172.97,0.8184313]
[1717555553273,2.1388,172.99,172.97,0.8184313]
[1717555553475,2.1389,172.98,172.97,0.8184313]
[1717555554987,2.1389,172.99,172.97,0.8184313]
[1717555555154,2.1389,172.98,172.97,0.8184313]
[1717555557983,2.1386,173.01,172.98,6.2598]
[1717555558158,4.2765,173.04,172.98,6.2598]
[1717555558358,2.1385,173.02,172.98,6.2598]
[1717555558555,2.1385,173.02,172.98,8.3987]
[1717555559056,30.1922,173.06,172.99,9.41851648]
[1717555559057,2.1383,173.03,172.99,9.41851648]
[1717555559355,8.5509,173.08,173.0,6.1252]
[1717555559563,2.1382,173.05,173.01,8.2637]
[1717555560072,2.1382,173.04,173.01,8.2637]
[1717555560277,2.1382,173.04,173.01,6.1252]
[1717555560470,2.1383,173.03,172.99,2.1388]
[1717555560785,2.1384,173.02,172.98,2.1389]
[1717555560947,21.64,173.09,172.97,2.9574313]
[1717555561153,14.9676,173.04,172.97,0.8184313]
[1717555561385,2.1386,173.01,172.97,129.4433313]
[1717555561557,4.2758,173.07,172.98,6.4859]
[1717555561748,6.4135,173.08,172.98,6.4859]
[1717555561749,2.1384,173.03,172.99,2.1387]
[1717555561954,4.2757,173.07,173.01,2.1385]
[1717555562161,2.1382,173.04,173.0,2.1386]
[1717555562356,2.1381,173.05,173.01,8.2153]
[1717555562872,2.1382,173.04,173.01,8.2153]
[1717555563101,8.5514,173.08,173.02,2.1384]
[1717555563257,12.8247,173.11,173.05,2.138]
[1717555563575,2.1377,173.09,173.05,2.138]
[1717555563784,2.1377,173.09,173.05,8.794]
[1717555564077,2.1378,173.07,173.05,6.656]
[1717555564251,2.1379,173.07,173.05,6.656]
[1717555564770,2.1378,173.08,173.05,6.656]
[1717555565760,21.64,173.1,172.99,380.3]
[1717555565948,21.64,173.1,172.99,382.4387]
[1717555565949,2.1384,173.03,172.99,382.4387]
[1717555566153,2.1384,173.03,172.97,11.2020313]
[1717555566154,21.64,173.04,172.97,0.8184313]
[1717555566385,10.6923,173.02,172.97,0.8184313]
[1717555566549,2.1387,173.0,172.97,6.9239313]
[1717555566968,8.5536,173.03,172.97,6.9239313]
[1717555567174,2.1385,173.02,172.98,2.1389]
[1717555567375,2.1385,173.02,172.98,8.2444]
[1717555568064,2.1386,173.01,172.98,6.1055]
[1717555568396,8.5536,173.03,172.98,6.1055]
[1717555568579,2.1387,173.0,172.98,6.1055]
[1717555569071,2.1386,173.01,172.98,6.1055]
[1717555569270,2.1387,173.0,172.97,0.8184313]
[1717555569473,2.1389,172.98,172.97,0.8184313]
[1717555569774,6.4168,172.98,172.97,0.8184313]
[1717555569979,2.1389,172.98,172.97,0.8184313]
[1717555570687,6.4168,172.98,172.97,0.8184313]
[1717555571068,2.1389,172.98,172.97,0.8184313]
[1717555574683,4.277,173.02,172.98,6.609]
[1717555574888,2.1386,173.01,172.98,6.609]
[1717555575669,2.1386,173.01,172.97,0.8184313]
[1717555575868,2.1385,173.02,172.99,6.4726]
[1717555576179,2.1384,173.03,172.99,8.6114]
[1717555576385,2.1384,173.02,172.99,8.6114]
[1717555576571,2.1384,173.02,172.99,6.4726]
[1717555576771,2.1387,173.0,172.99,6.4726]
[1717555576978,2.1386,173.01,172.99,6.4726]
[1717555577363,4.277,173.02,172.97,7.2910313]
[1717555577562,4.2767,173.03,172.97,2.9574313]
[1717555577792,2.1386,173.02,172.98,8.6115]
[1717555578117,2.1386,173.01,172.98,6.4726]
[1717555578589,4.277,173.02,172.98,6.4726]
[1717555578989,2.1388,172.99,172.97,0.8184313]
[1717555579292,2.1389,172.98,172.97,0.8184313]
[1717555579486,2.1388,172.99,172.97,0.8184313]
[1717555579787,8.554,173.02,172.97,0.8184313]
[1717555579788,2.1387,173.0,172.97,0.8184313]
[1717555580971,2.1387,173.0,172.97,7.3907313]
[1717555581680,14.9693,173.02,172.97,0.8184313]
[1717555581990,2.1389,172.99,172.97,0.8184313]
[1717555582393,2.1389,172.98,172.97,0.8184313]
[1717555583011,21.3896,172.98,172.97,0.8184313]
[1717555583294,14.9727,172.98,172.97,0.8184313]
[1717555583508,6.4168,172.98,172.97,0.8184313]
[1717555583671,2.1389,172.98,172.97,0.8184313]
[1717555584205,2.1389,172.99,172.97,0.8184313]
[1717555584407,2.1389,172.98,172.97,0.8184313]
[1717555585590,2.1389,172.99,172.97,0.8184313]
[1717555587018,2.1389,172.98,172.97,0.8184313]
[1717555588105,2.1389,172.99,172.97,0.8184313]
[1717555589509,2.1386,173.01,172.97,9.5561313]
[1717555589692,19.2421,173.06,172.98,126.5987]
[1717555589898,2.1383,173.04,173.0,8.7374]
[1717555590509,2.1376,173.09,173.05,2.138]
[1717555590694,2.1378,173.08,173.04,2.1381]
[1717555590882,2.1376,173.09,173.04,2.1381]
[1717555591203,2.1376,173.09,173.04,8.7224]
[1717555591405,2.1377,173.08,173.04,8.7224]
[1717555591794,2.1378,173.08,173.04,6.5843]
[1717555592092,2.1376,173.09,173.05,8.7223]
[1717555592793,2.1375,173.1,173.06,6.5843]
[1717555592997,2.1376,173.09,173.06,6.5843]
[1717555593694,2.1374,173.11,173.07,6.5843]
[1717555594005,2.1374,173.11,173.08,6.5843]
[1717555594190,2.1372,173.12,173.08,6.5843]
[1717555594810,5.52533021,173.16,173.08,6.5843]
[1717555595123,2.1369,173.15,173.1,2.1374]
[1717555595406,2.137,173.14,173.1,6.5029]
[1717555596386,2.1368,173.16,173.1,6.5029]
[1717555596586,2.1368,173.16,173.11,8.7571]
[1717555596785,2.1368,173.15,173.11,6.6198]
[1717555597006,2.137,173.14,173.1,2.1374]
[1717555597501,2.1369,173.15,173.1,8.7572]
[1717555597694,2.1371,173.13,173.1,6.6198]
[1717555597895,2.1377,173.08,173.03,8.758]
[1717555598099,21.64,173.11,173.01,6.6198]
[1717555598304,2.1382,173.04,173.01,6.6198]
[1717555598633,2.1381,173.05,173.01,6.6198]
[1717555598931,2.1385,173.02,172.97,2.9574313]
[1717555599089,2.1385,173.02,172.98,8.5998]
[1717555599290,4.2762,173.05,172.98,6.4609]
[1717555599497,2.1382,173.04,172.99,8.5996]
[1717555600222,2.1381,173.05,173.0,2.1387]
[1717555600397,2.1381,173.05,173.01,2.1385]
[1717555601120,2.1381,173.05,172.98,130.7387]
[1717555601416,25.9155,173.08,173.0,6.461]
[1717555601417,2.1382,173.04,173.0,6.461]
[1717555601594,2.1383,173.03,173.0,6.461]
[1717555601794,2.1382,173.04,173.0,8.5997]
[1717555602828,21.64,173.08,173.01,120.0]
[1717555602995,2.1378,173.08,173.03,2.1382]
[1717555603195,2.1379,173.07,173.01,120.0]
[1717555603816,4.2751,173.1,173.03,8.5992]
[1717555603817,2.1377,173.08,173.03,8.5992]
[1717555604528,2.1376,173.09,173.04,8.5991]
[1717555604731,4.2745,173.12,173.05,2.138]
[1717555604906,2.1375,173.1,173.05,2.138]
[1717555605112,2.1376,173.09,173.05,6.0757]
[1717555605721,2.1375,173.1,173.06,6.4819]
[1717555606810,2.1376,173.09,173.06,6.4819]
[1717555607128,2.1375,173.1,173.06,6.4819]
[1717555607528,2.1375,173.1,173.06,8.6198]
[1717555607837,12.8224,173.14,173.06,8.6198]
[1717555607838,2.1374,173.11,173.07,6.3616]
[1717555608208,2.1374,173.11,173.08,6.2603]
[1717555608410,2.1375,173.1,173.08,6.2603]
[1717555608840,2.1374,173.11,173.08,6.2603]
[1717555609706,2.1372,173.12,173.08,6.2603]
[1717555610205,2.1373,173.11,173.08,6.2603]
[1717555610627,2.1372,173.12,173.08,6.2603]
[1717555610814,2.1372,173.12,173.08,8.398]
[1717555611012,12.821,173.16,173.09,8.3978]
[1717555611212,2.1371,173.13,173.09,8.3978]
[1717555611420,2.137,173.14,173.1,2.1374]
[1717555611704,2.137,173.14,173.11,6.4796]
[1717555612111,2.1369,173.15,173.11,8.6169]
[1717555612922,2.137,173.14,173.11,6.4796]
[1717555613322,2.1369,173.15,173.11,6.4796]
[1717555613526,2.1369,173.15,173.12,6.6477]
[1717555614328,2.1369,173.15,173.11,2.1373]
[1717555614638,21.64,173.2,173.11,2.1373]
[1717555614639,4.2722,173.21,173.13,120.0]
[1717555614843,2.1364,173.19,173.15,6.1208]
[1717555615138,2.1364,173.19,173.15,8.2576]
[1717555615656,2.1364,173.19,173.15,128.2576]
[1717555615827,2.1363,173.2,173.15,128.2576]
[1717555616140,2.1362,173.2,173.16,2.1367]
[1717555616341,2.1363,173.19,173.15,128.2576]
[1717555616707,2.1363,173.2,173.15,128.2576]
[1717555617537,2.1363,173.2,173.16,8.5062]
[1717555617740,2.1363,173.2,173.16,6.3695]
[1717555618243,2.1363,173.19,173.16,6.3695]
[1717555618418,4.2724,173.21,173.12,141.7382]
[1717555618722,2.1365,173.18,173.14,2.1369]
[1717555619410,4.2725,173.2,173.12,26.0125]
[1717555619610,2.1364,173.19,173.15,2.1368]
[1717555619812,2.1363,173.2,173.13,10.579]
[1717555620014,2.1364,173.19,173.15,2.1368]
[1717555620408,21.64,173.21,173.09,6.1021]
[1717555620651,2.1368,173.15,173.12,2.1372]
[1717555620825,2.1368,173.16,173.12,2.1372]
[1717555621614,2.1371,173.13,173.1,2.1374]
[1717555621831,2.1374,173.11,173.09,6.1021]
[1717555622041,2.1374,173.11,173.07,2.1377]
[1717555622218,4.2743,173.13,173.05,2.1379]
[1717555622219,2.1375,173.1,173.05,2.1379]
[1717555622534,2.1375,173.1,173.06,2.1379]
[1717555622846,2.1374,173.11,173.07,2.1378]
[1717555623022,2.1372,173.12,173.08,2.1377]
[1717555623232,25.9139,173.15,173.06,124.2758]
[1717555623412,2.137,173.14,173.1,2.1374]
[1717555623752,21.64,173.15,173.06,120.0]
[1717555623954,4.274,173.14,173.06,120.0]
[1717555624114,2.1372,173.12,173.08,2.1376]
[1717555624315,8.5486,173.13,173.07,6.0167]
[1717555624533,2.1374,173.1,173.07,6.0167]
[1717555624740,2.1374,173.11,173.07,8.1545]
[1717555624917,2.1374,173.11,173.07,2.1377]
[1717555625121,2.1372,173.12,173.07,2.1377]
[1717555625336,2.1372,173.12,173.08,2.1377]
[1717555626123,2.1371,173.13,173.08,2.1377]
[1717555626317,2.1373,173.12,173.06,120.0]
[1717555626517,2.1373,173.12,173.08,2.1377]
[1717555626723,2.1371,173.13,173.08,2.1377]
[1717555626924,2.1371,173.13,173.09,2.1376]
[1717555627956,2.137,173.14,173.1,2.1374]
[1717555628645,2.1372,173.12,173.08,2.1376]
[1717555628852,2.1366,173.17,173.13,2.137]
[1717555629062,32.3202,173.22,173.13,120.0]
[1717555629218,25.9121,173.22,173.15,2.1368]
[1717555629421,2.1363,173.2,173.15,2.1368]
[1717555629758,21.64,173.22,173.16,2.1367]
[1717555630048,2.1362,173.2,173.16,2.1367]
[1717555630253,6.4074,173.24,173.17,120.0]
[1717555630254,2.1357,173.24,173.17,120.0]
[1717555630555,4.2709,173.27,173.17,130.6828]
[1717555630843,4.2709,173.27,173.17,124.273]
[1717555631024,2.1358,173.24,173.19,2.1363]
[1717555631419,14.725,173.29,173.1,380.3]
[1717555631420,21.64,173.25,173.13,124.2741]
[1717555631615,4.2718,173.23,173.13,124.2741]
[1717555631820,2.1362,173.21,173.17,2.1366]
[1717555632040,2.1362,173.21,173.14,4.2739]
[1717555632446,2.1362,173.21,173.17,2.1366]
[1717555632621,2.136,173.22,173.17,2.1366]
[1717555632827,2.136,173.22,173.18,2.1364]
[1717555633152,2.136,173.22,173.17,2.1365]
[1717555633743,2.136,173.22,173.18,2.1364]
[1717555633919,2.1357,173.24,173.19,2.1363]
[1717555634251,21.64,173.25,173.19,120.0]
[1717555634252,2.1356,173.25,173.19,120.0]
[1717555634464,2.1356,173.25,173.2,2.1362]
[1717555634623,4.2712,173.25,173.18,2.1364]
[1717555634818,19.94689688,173.29,173.18,120.0]
[1717555635030,2.1356,173.25,173.21,2.136]
[1717555635239,14.9478,173.27,173.19,2.1363]
[1717555635438,28.0465,173.26,173.18,2.1364]
[1717555635656,4.2713,173.25,173.19,2.1363]
[1717555635858,2.1356,173.25,173.18,120.0]
[1717555636037,21.64,173.26,173.21,2.136]
[1717555636348,2.1356,173.25,173.21,2.136]
[1717555636722,2.1356,173.25,173.2,2.1361]
[1717555636925,28.75025481,173.47,173.2,2.1361]
[1717555636926,6.043,173.38,173.27,4.2706]
[1717555637125,2.1346,173.33,173.29,2.135]
[1717555637434,2.1347,173.33,173.28,2.1352]
[1717555637938,2.1347,173.32,173.27,2.1353]
[1717555638139,2.1347,173.33,173.25,10.6777]
[1717555638329,2.1347,173.33,173.28,2.1351]
[1717555638531,2.1347,173.33,173.28,2.1352]
[1717555638753,2.1347,173.33,173.29,2.1351]
[1717555638937,8.5354,173.4,173.33,2.1346]
[1717555639123,2.1343,173.36,173.32,2.1346]
[1717555639461,2.1343,173.36,173.31,2.1348]
[1717555640146,2.1342,173.36,173.31,2.1348]
[1717555640354,4.2684,173.37,173.3,2.1349]
[1717555640529,2.1344,173.35,173.31,2.1348]
[1717555641039,2.1341,173.38,173.3,19.2151]
[1717555641356,2.1342,173.37,173.33,2.1345]
[1717555642140,2.1343,173.36,173.32,2.1347]
[1717555643176,2.1342,173.37,173.3,4.27]
[1717555643342,2.1342,173.37,173.33,2.1346]
[1717555644952,6.043,173.42,173.34,2.1344]
[1717555645155,2.1341,173.38,173.34,2.1344]
[1717555646359,21.64,173.43,173.31,126.0637]
[1717555646566,2.1337,173.41,173.37,2.134]
[1717555649048,25.9061,173.46,173.37,10.6706]
[1717555649262,2.1334,173.43,173.39,2.1338]
[1717555649486,2.1332,173.45,173.41,2.1336]
[1717555649642,2.1333,173.44,173.4,2.1337]
[1717555651653,10.6647,173.47,173.41,2.1336]
[1717555651654,2.1332,173.45,173.41,2.1336]
[1717555651975,2.1331,173.46,173.42,2.1335]
[1717555652354,2.1331,173.45,173.42,2.1335]
[1717555652665,2.1331,173.45,173.41,2.1336]
[1717555652981,2.1333,173.44,173.4,2.1337]
[1717555653668,27.8025,173.48,173.33,12.8077]
[1717555653669,4.2671,173.42,173.33,12.8077]
[1717555653873,2.1338,173.4,173.36,2.1342]
[1717555654081,2.1341,173.38,173.34,2.1345]
[1717555654257,2.1343,173.36,173.32,2.1347]
[1717555654569,2.1342,173.37,173.32,2.1346]
[1717555654784,2.1342,173.37,173.33,2.1346]
[1717555655259,2.1341,173.38,173.34,2.1345]
[1717555656064,4.2665,173.45,173.39,2.1338]
[1717555656249,2.1335,173.43,173.38,2.1339]
[1717555656444,2.1335,173.42,173.38,2.1339]
[1717555656678,2.1334,173.43,173.39,2.1338]
[1717555656848,15.3673,173.5,173.39,2.1338]
[1717555656849,30.171,173.49,173.39,4.2678]
[1717555657052,2.1331,173.46,173.42,2.1335]
[1717555657271,2.1331,173.46,173.39,4.2678]
[1717555657272,2.1332,173.45,173.41,2.1336]
[1717555658980,4.2666,173.44,173.34,517.3163]
[1717555659185,2.1337,173.41,173.36,2.1341]
[1717555659383,2.1337,173.41,173.36,2.1342]
[1717555659682,2.1337,173.41,173.37,2.134]
[1717555659988,19.1998,173.44,173.38,2.134]
[1717555659989,2.1336,173.42,173.38,2.134]
[1717555660281,2.1336,173.42,173.33,10.673]
[1717555660282,6.6204,173.42,173.33,10.673]
[1717555660581,2.1339,173.39,173.35,2.1343]
[1717555661363,6.3993,173.46,173.35,120.0]
[1717555661560,2.1334,173.43,173.39,2.1339]
[1717555661961,2.1333,173.44,173.39,2.1339]
[1717555662168,2.1334,173.43,173.39,2.1339]
[1717555662886,2.1334,173.43,173.38,2.134]
[1717555663555,2.1335,173.42,173.38,2.134]
[1717555663790,6.6204,173.47,173.33,6.4036]
[1717555663992,2.1339,173.39,173.35,2.1343]
[1717555664357,2.1338,173.4,173.36,2.1342]
[1717555665174,4.2667,173.44,173.35,8.5375]
[1717555665398,6.6204,173.47,173.38,2.134]
[1717555665597,2.1335,173.42,173.38,2.134]
[1717555665909,2.1335,173.43,173.36,12.8055]
[1717555666483,2.1335,173.42,173.38,2.1339]
[1717555668108,6.3995,173.45,173.39,2.1338]
[1717555668109,2.1334,173.43,173.39,2.1338]
[1717555669196,2.1333,173.44,173.4,2.1337]
[1717555669399,2.1331,173.45,173.41,2.1335]
[1717555670270,2.1333,173.44,173.4,2.1337]
[1717555671003,2.1332,173.45,173.41,2.1336]
[1717555671299,2.1332,173.45,173.4,2.1337]
[1717555671597,2.1333,173.44,173.4,2.1337]
[1717555671795,2.1331,173.46,173.42,2.1335]
[1717555672306,15.3673,173.5,173.39,120.0]
[1717555672599,19.6324,173.5,173.41,10.668]
[1717555672801,2.1329,173.47,173.43,2.1333]
[1717555673296,15.3673,173.5,173.39,4.2676]
[1717555673499,10.6641,173.48,173.41,2.1336]
[1717555673805,10.6641,173.48,173.38,34.9378]
[1717555673806,2.1332,173.45,173.4,2.1337]
[1717555673985,2.1332,173.45,173.41,2.1336]
[1717555674389,2.1332,173.45,173.4,2.1337]
[1717555674600,2.1332,173.45,173.41,2.1336]
[1717555676604,2.1331,173.46,173.41,2.1336]
[1717555676983,6.3984,173.48,173.4,2.1337]
[1717555677184,12.7995,173.45,173.38,22.1339]
[1717555677398,2.133,173.47,173.39,124.2677]
[1717555677615,2.133,173.46,173.42,2.1334]
[1717555677912,2.133,173.47,173.42,2.1334]
[1717555678082,2.133,173.46,173.42,2.1334]
[1717555678283,2.133,173.46,173.41,2.1336]
[1717555680416,2.1332,173.45,173.41,2.1336]
[1717555680628,10.6642,173.54,173.38,2.1339]
[1717555680793,2.1335,173.43,173.38,2.1339]
[1717555681203,8.5321,173.47,173.36,4.2685]
[1717555681204,2.1333,173.44,173.39,2.1338]
[1717555683289,14.9309,173.47,173.39,2.1338]
[1717555683290,2.1332,173.45,173.4,8.1514]
[1717555683815,19.1968,173.47,173.4,2.1337]
[1717555684108,2.1334,173.43,173.39,2.1338]
[1717555684283,2.1334,173.43,173.38,2.1339]
[1717555684489,2.1335,173.42,173.38,2.1339]
[1717555685491,2.1334,173.43,173.38,2.1339]
[1717555685696,2.1334,173.43,173.39,2.1339]
[1717555686087,2.1333,173.44,173.39,2.1339]
[1717555687118,2.1334,173.43,173.39,2.1339]
[1717555687321,19.1977,173.46,173.39,2.1339]
[1717555687508,2.1334,173.43,173.39,2.1339]
[1717555687715,21.56,173.48,173.33,500.3]
[1717555688028,2.134,173.39,173.34,22.1344]
[1717555688320,2.1342,173.37,173.32,2.1347]
[1717555688814,2.1339,173.39,173.34,2.1345]
[1717555689218,2.134,173.38,173.34,2.1345]
[1717555689401,2.1339,173.39,173.34,2.1345]
[1717555689727,21.56,173.42,173.34,120.0]
[1717555690026,32.1853,173.45,173.36,120.0]
[1717555690208,2.1333,173.44,173.39,2.1338]
[1717555691300,10.6647,173.47,173.37,2.134]
[1717555691301,2.1336,173.42,173.37,2.134]
[1717555691715,2.1334,173.43,173.38,2.134]
[1717555691909,2.1332,173.45,173.4,2.1337]
[1717555692121,6.3588,173.47,173.39,2.1338]
[1717555692122,2.1333,173.44,173.39,2.1338]
[1717555692313,2.1334,173.43,173.39,2.1338]
[1717555692625,2.1335,173.42,173.38,2.134]
[1717555692804,2.1334,173.43,173.38,2.134]
[1717555693215,2.1334,173.43,173.38,2.1339]
[1717555693817,2.1333,173.44,173.39,2.1338]
[1717555695200,2.1334,173.43,173.38,2.1339]
[1717555695409,10.6653,173.46,173.35,388.8372]
[1717555695410,4.2666,173.44,173.35,380.3]
[1717555695614,2.1338,173.4,173.35,382.4343]
[1717555695924,2.1337,173.41,173.35,380.3]